[Event "Titled Tuesday Blitz December 06 Early 2022"]
[White "Lorenzo De La Riva, Lazaro"]
[Black "Dilanyan, Grigor"]
[WhiteFideId "2268809"]
[BlackFideId "13303570"]
[WhiteElo "2294"]
[BlackElo "2229"]
[Result "1-0"]
[Round "02"]
[TimeControl "180+1"]
[Date "2022.12.07"]
[WhiteClock "0:01:26"]
[BlackClock "0:00:15"]

1. e4 {[%clk 0:03:00]}  c6 {[%clk 0:00:01]} 2. d4 {[%clk 0:02:57]}  d5 {[%clk 0:00:02]} 3. Nc3 {[%clk 0:02:58]}  dxe4 {[%clk 0:00:02]} 4. Bc4 {[%clk 0:02:58]}  Nf6 {[%clk 0:00:03]} 5. f3 {[%clk 0:02:58]}  Bf5 {[%clk 0:00:03]} 6. g4 {[%clk 0:02:49]}  Bg6 {[%clk 0:00:03]} 7. g5 {[%clk 0:02:50]}  e6 {[%clk 0:00:03]} 8. gxf6 {[%clk 0:02:50]}  Qxf6 {[%clk 0:00:04]} 9. h4 {[%clk 0:02:43]}  exf3 {[%clk 0:00:03]} 10. Nxf3 {[%clk 0:02:40]}  Bh5 {[%clk 0:00:03]} 11. Be2 {[%clk 0:02:39]}  Bd6 {[%clk 0:00:03]} 12. Ne4 {[%clk 0:02:38]}  Qe7 {[%clk 0:00:03]} 13. Nxd6+ {[%clk 0:02:30]}  Qxd6 {[%clk 0:00:04]} 14. Ne5 {[%clk 0:02:31]}  Bxe2 {[%clk 0:00:03]} 15. Qxe2 {[%clk 0:02:32]}  Nd7 {[%clk 0:00:04]} 16. Nxd7 {[%clk 0:02:30]}  Qxd7 {[%clk 0:00:05]} 17. Be3 {[%clk 0:02:29]}  O-O-O {[%clk 0:00:06]} 18. O-O-O {[%clk 0:02:29]}  Qd5 {[%clk 0:00:06]} 19. Kb1 {[%clk 0:02:29]}  Rhe8 {[%clk 0:00:06]} 20. Rhg1 {[%clk 0:02:27]}  g6 {[%clk 0:00:06]} 21. Bg5 {[%clk 0:02:26]}  Rd7 {[%clk 0:00:06]} 22. c4 {[%clk 0:02:23]}  Qf5+ {[%clk 0:00:06]} 23. Qd3 {[%clk 0:02:24]}  Qxd3+ {[%clk 0:00:06]} 24. Rxd3 {[%clk 0:02:25]}  h5 {[%clk 0:00:07]} 25. Rgd1 {[%clk 0:02:19]}  f5 {[%clk 0:00:06]} 26. Kc2 {[%clk 0:02:17]}  Rd6 {[%clk 0:00:06]} 27. d5 {[%clk 0:02:16]}  cxd5 {[%clk 0:00:06]} 28. cxd5 {[%clk 0:02:17]}  exd5 {[%clk 0:00:06]} 29. Rxd5 {[%clk 0:02:18]}  Re2+ {[%clk 0:00:07]} 30. R1d2 {[%clk 0:02:16]}  Rxd5 {[%clk 0:00:06]} 31. Rxe2 {[%clk 0:02:15]}  Rc5+ {[%clk 0:00:06]} 32. Kd3 {[%clk 0:02:14]}  Rd5+ {[%clk 0:00:06]} 33. Kc4 {[%clk 0:02:14]}  Rd6 {[%clk 0:00:07]} 34. Re8+ {[%clk 0:02:11]}  Kd7 {[%clk 0:00:07]} 35. Rd8+ {[%clk 0:02:11]}  Kc6 {[%clk 0:00:07]} 36. Rxd6+ {[%clk 0:02:11]}  Kxd6 {[%clk 0:00:08]} 37. Kd4 {[%clk 0:02:10]}  Kc6 {[%clk 0:00:09]} 38. b4 {[%clk 0:02:09]}  Kd6 {[%clk 0:00:09]} 39. a4 {[%clk 0:02:09]}  a6 {[%clk 0:00:09]} 40. a5 {[%clk 0:02:09]}  Ke6 {[%clk 0:00:10]} 41. Kc5 {[%clk 0:02:08]}  Ke5 {[%clk 0:00:10]} 42. Kb6 {[%clk 0:02:09]}  f4 {[%clk 0:00:11]} 43. Kxb7 {[%clk 0:02:10]}  f3 {[%clk 0:00:11]} 44. Be3 {[%clk 0:02:10]}  g5 {[%clk 0:00:11]} 45. hxg5 {[%clk 0:02:09]}  h4 {[%clk 0:00:11]} 46. Kxa6 {[%clk 0:02:10]}  h3 {[%clk 0:00:11]} 47. g6 {[%clk 0:02:11]}  Kf6 {[%clk 0:00:11]} 48. b5 {[%clk 0:01:51]}  h2 {[%clk 0:00:11]} 49. b6 {[%clk 0:01:52]}  h1=Q {[%clk 0:00:10]} 50. b7 {[%clk 0:01:52]}  Qf1+ {[%clk 0:00:07]} 51. Ka7 {[%clk 0:01:51]}  Qd3 {[%clk 0:00:04]} 52. Bb6 {[%clk 0:01:39]}  Kxg6 {[%clk 0:00:01]} 53. b8=Q {[%clk 0:01:38]}  Kf5 {[%clk 0:00:02]} 54. Qf8+ {[%clk 0:01:37]}  Kg4 {[%clk 0:00:02]} 55. Qg7+ {[%clk 0:01:36]}  Kh3 {[%clk 0:00:03]} 56. Qh6+ {[%clk 0:01:32]}  Kg2 {[%clk 0:00:03]} 57. Qg5+ {[%clk 0:01:32]}  Kf1 {[%clk 0:00:04]} 58. Qg1+ {[%clk 0:01:32]}  Ke2 {[%clk 0:00:04]} 59. Qf2+ {[%clk 0:01:33]}  Kd1 {[%clk 0:00:05]} 60. Qd4 {[%clk 0:01:30]}  Qxd4 {[%clk 0:00:04]} 61. Bxd4 {[%clk 0:01:31]}  Ke2 {[%clk 0:00:03]} 62. a6 {[%clk 0:01:31]}  Kd3 {[%clk 0:00:04]} 63. Bb6 {[%clk 0:01:30]}  Ke2 {[%clk 0:00:05]} 64. Kb7 {[%clk 0:01:30]}  f2 {[%clk 0:00:06]} 65. Bxf2 {[%clk 0:01:30]}  Kxf2 {[%clk 0:00:06]} 66. a7 {[%clk 0:01:31]}  Ke2 {[%clk 0:00:07]} 67. a8=Q {[%clk 0:01:32]}  Kd3 {[%clk 0:00:08]} 68. Qa6+ {[%clk 0:01:31]}  Kc2 {[%clk 0:00:08]} 69. Qb5 {[%clk 0:01:31]}  Kc3 {[%clk 0:00:09]} 70. Qa4 {[%clk 0:01:31]}  Kd3 {[%clk 0:00:09]} 71. Qb4 {[%clk 0:01:31]}  Ke3 {[%clk 0:00:09]} 72. Qc4 {[%clk 0:01:30]}  Kf3 {[%clk 0:00:10]} 73. Qd4 {[%clk 0:01:27]}  Kg2 {[%clk 0:00:10]} 74. Qe3 {[%clk 0:01:27]}  Kh1 {[%clk 0:00:11]} 75. Qg5 {[%clk 0:01:25]}  Kh2 {[%clk 0:00:11]} 76. Qg4 {[%clk 0:01:25]}  Kh1 {[%clk 0:00:12]} 77. Kc6 {[%clk 0:01:24]}  Kh2 {[%clk 0:00:12]} 78. Kd5 {[%clk 0:01:25]}  Kh1 {[%clk 0:00:13]} 79. Ke4 {[%clk 0:01:26]}  Kh2 {[%clk 0:00:14]} 80. Kf3 {[%clk 0:01:25]}  Kh1 {[%clk 0:00:15]} 81. Qg2# {[%clk 0:01:26]} 1-0


[Site "https://www.chess.com"]

[Event "Titled Tuesday Blitz December 06 Early 2022"]
[White "Manon-og, Ramon Jr."]
[Black "Mortazavi, Ali"]
[WhiteFideId "5200776"]
[BlackFideId "401323"]
[WhiteElo "2324"]
[BlackElo "2339"]
[Result "1-0"]
[Round "02"]
[TimeControl "180+1"]
[Date "2022.12.07"]
[WhiteClock "0:00:09"]
[BlackClock "0:00:01"]

1. e4 {[%clk 0:02:56]}  c6 {[%clk 0:02:59]} 2. d4 {[%clk 0:02:56]}  d5 {[%clk 0:02:59]} 3. e5 {[%clk 0:02:56]}  Bf5 {[%clk 0:02:59]} 4. Nd2 {[%clk 0:02:57]}  e6 {[%clk 0:02:59]} 5. Nb3 {[%clk 0:02:57]}  Ne7 {[%clk 0:02:58]} 6. Nf3 {[%clk 0:02:57]}  Ng6 {[%clk 0:02:57]} 7. Be2 {[%clk 0:02:58]}  Nd7 {[%clk 0:02:57]} 8. O-O {[%clk 0:02:58]}  f6 {[%clk 0:02:57]} 9. exf6 {[%clk 0:02:57]}  Qxf6 {[%clk 0:02:58]} 10. c4 {[%clk 0:02:56]}  Bd6 {[%clk 0:02:57]} 11. Bg5 {[%clk 0:02:51]}  Qf7 {[%clk 0:02:57]} 12. Re1 {[%clk 0:02:47]}  O-O {[%clk 0:02:56]} 13. Nbd2 {[%clk 0:02:38]}  h6 {[%clk 0:02:43]} 14. Be3 {[%clk 0:02:37]}  Nf4 {[%clk 0:02:42]} 15. Nf1 {[%clk 0:02:19]}  Bg4 {[%clk 0:02:24]} 16. Bxf4 {[%clk 0:02:13]}  Bxf4 {[%clk 0:02:21]} 17. Ng3 {[%clk 0:02:12]}  Rae8 {[%clk 0:02:19]} 18. b3 {[%clk 0:01:56]}  Kh8 {[%clk 0:02:17]} 19. Qc2 {[%clk 0:01:48]}  Qf6 {[%clk 0:01:58]} 20. Rad1 {[%clk 0:01:44]}  Bb8 {[%clk 0:01:58]} 21. Rf1 {[%clk 0:01:41]}  Re7 {[%clk 0:01:25]} 22. Ne5 {[%clk 0:01:23]}  Bxe5 {[%clk 0:01:12]} 23. dxe5 {[%clk 0:01:24]}  Nxe5 {[%clk 0:01:12]} 24. f4 {[%clk 0:01:08]}  Ng6 {[%clk 0:00:56]} 25. Bxg4 {[%clk 0:01:07]}  Nxf4 {[%clk 0:00:57]} 26. Nh5 {[%clk 0:01:02]}  Qg5 {[%clk 0:00:49]} 27. Nxf4 {[%clk 0:00:51]}  Rxf4 {[%clk 0:00:48]} 28. Rxf4 {[%clk 0:00:47]}  Qxf4 {[%clk 0:00:48]} 29. Bf3 {[%clk 0:00:46]}  Qf6 {[%clk 0:00:44]} 30. Qd2 {[%clk 0:00:37]}  a6 {[%clk 0:00:26]} 31. cxd5 {[%clk 0:00:32]}  exd5 {[%clk 0:00:24]} 32. Re1 {[%clk 0:00:32]}  g5 {[%clk 0:00:20]} 33. Rxe7 {[%clk 0:00:30]}  Qxe7 {[%clk 0:00:21]} 34. Qd4+ {[%clk 0:00:30]}  Kg8 {[%clk 0:00:21]} 35. h3 {[%clk 0:00:30]}  a5 {[%clk 0:00:19]} 36. Qa7 {[%clk 0:00:27]}  Qe1+ {[%clk 0:00:17]} 37. Kh2 {[%clk 0:00:27]}  Qe5+ {[%clk 0:00:18]} 38. g3 {[%clk 0:00:27]}  Qb2+ {[%clk 0:00:18]} 39. Bg2 {[%clk 0:00:27]}  Qxa2 {[%clk 0:00:16]} 40. Qxb7 {[%clk 0:00:26]}  Qc2 {[%clk 0:00:15]} 41. Qc8+ {[%clk 0:00:20]}  Kg7 {[%clk 0:00:16]} 42. Qc7+ {[%clk 0:00:19]}  Kf6 {[%clk 0:00:16]} 43. Qxa5 {[%clk 0:00:18]}  Ke5 {[%clk 0:00:14]} 44. b4 {[%clk 0:00:17]}  Kd4 {[%clk 0:00:13]} 45. Qb6+ {[%clk 0:00:17]}  Kd3 {[%clk 0:00:11]} 46. h4 {[%clk 0:00:15]}  gxh4 {[%clk 0:00:11]} 47. gxh4 {[%clk 0:00:16]}  Ke2 {[%clk 0:00:09]} 48. Qa6+ {[%clk 0:00:15]}  Ke1 {[%clk 0:00:08]} 49. Qa1+ {[%clk 0:00:13]}  Kf2 {[%clk 0:00:07]} 50. Qf6+ {[%clk 0:00:13]}  Ke3 {[%clk 0:00:08]} 51. Qxh6+ {[%clk 0:00:12]}  Kd4 {[%clk 0:00:05]} 52. Qd6 {[%clk 0:00:11]}  Ke3 {[%clk 0:00:02]} 53. Qc5+ {[%clk 0:00:10]}  Kf4 {[%clk 0:00:01]} 54. Qxc2 {[%clk 0:00:09]} 1-0


[Site "https://www.chess.com"]

[Event "Titled Tuesday Blitz December 06 Early 2022"]
[White "Martinez Alcantara, Jose Eduardo"]
[Black "Weetik, Vjacheslav"]
[WhiteFideId "3805662"]
[BlackFideId "4153472"]
[WhiteElo "2707"]
[BlackElo "2469"]
[Result "1-0"]
[Round "02"]
[TimeControl "180+1"]
[Date "2022.12.06"]
[WhiteClock "0:01:22"]
[BlackClock "0:00:02"]

1. e4 {[%clk 0:03:00]}  c5 {[%clk 0:02:59]} 2. Nf3 {[%clk 0:02:59]}  Nc6 {[%clk 0:02:56]} 3. c3 {[%clk 0:02:54]}  e6 {[%clk 0:02:44]} 4. d4 {[%clk 0:02:47]}  d5 {[%clk 0:02:37]} 5. exd5 {[%clk 0:02:47]}  exd5 {[%clk 0:02:35]} 6. Be3 {[%clk 0:02:39]}  cxd4 {[%clk 0:02:21]} 7. Nxd4 {[%clk 0:02:39]}  Nf6 {[%clk 0:02:12]} 8. Nd2 {[%clk 0:02:38]}  Bd6 {[%clk 0:02:12]} 9. Be2 {[%clk 0:02:38]}  O-O {[%clk 0:02:10]} 10. O-O {[%clk 0:02:38]}  Re8 {[%clk 0:02:05]} 11. Re1 {[%clk 0:02:36]}  a6 {[%clk 0:01:53]} 12. h3 {[%clk 0:02:35]}  Bc7 {[%clk 0:01:52]} 13. N2f3 {[%clk 0:02:33]}  Qd6 {[%clk 0:01:43]} 14. Bd3 {[%clk 0:02:15]}  Ne4 {[%clk 0:01:32]} 15. c4 {[%clk 0:02:04]}  Nxd4 {[%clk 0:01:16]} 16. Bxd4 {[%clk 0:02:03]}  Bf5 {[%clk 0:01:09]} 17. c5 {[%clk 0:01:57]}  Qd7 {[%clk 0:01:00]} 18. Bf1 {[%clk 0:01:55]}  Rac8 {[%clk 0:00:24]} 19. Qb3 {[%clk 0:01:52]}  Bb8 {[%clk 0:00:24]} 20. Rad1 {[%clk 0:01:52]}  h6 {[%clk 0:00:20]} 21. Be3 {[%clk 0:01:52]}  Be6 {[%clk 0:00:10]} 22. Qb4 {[%clk 0:01:51]}  Qc7 {[%clk 0:00:09]} 23. Rc1 {[%clk 0:01:39]}  Ng5 {[%clk 0:00:05]} 24. Bxg5 {[%clk 0:01:38]}  hxg5 {[%clk 0:00:05]} 25. g3 {[%clk 0:01:28]}  f6 {[%clk 0:00:03]} 26. Nd4 {[%clk 0:01:27]}  Bf7 {[%clk 0:00:02]} 27. c6 {[%clk 0:01:23]}  Qd7 {[%clk 0:00:02]} 28. cxd7 {[%clk 0:01:22]} 1-0


[Site "https://www.chess.com"]

[Event "Titled Tuesday Blitz December 06 Early 2022"]
[White "Martinez Reyes, Pedro Ramon"]
[Black "Carrasco Miranda, Andres"]
[WhiteFideId "3901807"]
[BlackFideId "3405990"]
[WhiteElo "2354"]
[BlackElo "2183"]
[Result "1-0"]
[Round "02"]
[TimeControl "180+1"]
[Date "2022.12.07"]
[WhiteClock "0:00:58"]
[BlackClock "0:00:39"]

1. d4 {[%clk 0:03:00]}  Nf6 {[%clk 0:02:59]} 2. Bf4 {[%clk 0:03:00]}  g6 {[%clk 0:02:58]} 3. Nc3 {[%clk 0:02:59]}  d5 {[%clk 0:02:56]} 4. Qd2 {[%clk 0:02:59]}  c6 {[%clk 0:02:55]} 5. O-O-O {[%clk 0:02:58]}  b5 {[%clk 0:02:55]} 6. Kb1 {[%clk 0:02:51]}  Nbd7 {[%clk 0:02:55]} 7. f3 {[%clk 0:02:51]}  Nb6 {[%clk 0:02:55]} 8. e4 {[%clk 0:02:33]}  b4 {[%clk 0:02:54]} 9. Nce2 {[%clk 0:02:33]}  dxe4 {[%clk 0:02:53]} 10. Nc1 {[%clk 0:02:33]}  Nfd5 {[%clk 0:02:51]} 11. fxe4 {[%clk 0:02:29]}  Nxf4 {[%clk 0:02:48]} 12. Qxf4 {[%clk 0:02:30]}  h5 {[%clk 0:02:47]} 13. Nf3 {[%clk 0:02:19]}  Bh6 {[%clk 0:02:46]} 14. Qe5 {[%clk 0:02:16]}  O-O {[%clk 0:02:46]} 15. Be2 {[%clk 0:02:07]}  a5 {[%clk 0:02:43]} 16. h3 {[%clk 0:02:03]}  a4 {[%clk 0:02:43]} 17. g4 {[%clk 0:02:02]}  b3 {[%clk 0:02:41]} 18. gxh5 {[%clk 0:01:59]}  bxc2+ {[%clk 0:02:41]} 19. Kxc2 {[%clk 0:01:58]}  Bg7 {[%clk 0:02:26]} 20. Qg3 {[%clk 0:01:54]}  a3 {[%clk 0:02:22]} 21. b3 {[%clk 0:01:52]}  Qd6 {[%clk 0:01:30]} 22. Qxd6 {[%clk 0:01:36]}  exd6 {[%clk 0:01:31]} 23. hxg6 {[%clk 0:01:37]}  fxg6 {[%clk 0:01:31]} 24. Rdg1 {[%clk 0:01:37]}  Rf6 {[%clk 0:01:23]} 25. Rg3 {[%clk 0:01:37]}  Ra5 {[%clk 0:01:05]} 26. Rhg1 {[%clk 0:01:35]}  Rh5 {[%clk 0:01:05]} 27. h4 {[%clk 0:01:32]}  c5 {[%clk 0:01:00]} 28. dxc5 {[%clk 0:01:18]}  dxc5 {[%clk 0:01:00]} 29. Rxg6 {[%clk 0:01:18]}  Rxg6 {[%clk 0:00:57]} 30. Rxg6 {[%clk 0:01:19]}  Nd7 {[%clk 0:00:50]} 31. Nd3 {[%clk 0:01:17]}  Bb7 {[%clk 0:00:49]} 32. Rd6 {[%clk 0:01:04]}  Nf6 {[%clk 0:00:42]} 33. Rd8+ {[%clk 0:01:03]}  Kf7 {[%clk 0:00:41]} 34. Ng5+ {[%clk 0:01:04]}  Ke7 {[%clk 0:00:41]} 35. Rb8 {[%clk 0:01:02]}  Bxe4 {[%clk 0:00:38]} 36. Bxh5 {[%clk 0:01:00]}  Bxd3+ {[%clk 0:00:35]} 37. Kxd3 {[%clk 0:00:59]}  Nxh5 {[%clk 0:00:36]} 38. Rb7+ {[%clk 0:00:57]}  Kf6 {[%clk 0:00:37]} 39. Ne4+ {[%clk 0:00:57]}  Ke5 {[%clk 0:00:36]} 40. Nxc5 {[%clk 0:00:57]}  Bf6 {[%clk 0:00:35]} 41. Nd7+ {[%clk 0:00:57]}  Ke6 {[%clk 0:00:36]} 42. Nxf6 {[%clk 0:00:58]}  Kxf6 {[%clk 0:00:36]} 43. Rb6+ {[%clk 0:00:57]}  Kf5 {[%clk 0:00:36]} 44. Rb5+ {[%clk 0:00:58]}  Kg4 {[%clk 0:00:37]} 45. Rxh5 {[%clk 0:00:58]}  Kxh5 {[%clk 0:00:38]} 46. b4 {[%clk 0:00:58]}  Kxh4 {[%clk 0:00:39]} 47. b5 {[%clk 0:00:58]} 1-0


[Site "https://www.chess.com"]

[Event "Titled Tuesday Blitz December 06 Early 2022"]
[White "Matinian, Nikita"]
[Black "Battlecruiser_Operational"]
[WhiteFideId "24129100"]
[WhiteElo "2422"]
[BlackElo "2229"]
[Result "1-0"]
[Round "02"]
[TimeControl "180+1"]
[Date "2022.12.07"]
[WhiteClock "0:01:37"]
[BlackClock "0:01:19"]

1. e4 {[%clk 0:03:00]}  c6 {[%clk 0:02:59]} 2. d4 {[%clk 0:03:00]}  d5 {[%clk 0:02:59]} 3. e5 {[%clk 0:03:01]}  Bf5 {[%clk 0:02:59]} 4. Nf3 {[%clk 0:03:02]}  e6 {[%clk 0:02:59]} 5. Be2 {[%clk 0:03:02]}  Nd7 {[%clk 0:02:57]} 6. O-O {[%clk 0:03:03]}  h6 {[%clk 0:02:58]} 7. Nbd2 {[%clk 0:03:03]}  Ne7 {[%clk 0:02:56]} 8. Nb3 {[%clk 0:03:04]}  Bh7 {[%clk 0:02:56]} 9. a4 {[%clk 0:03:05]}  g5 {[%clk 0:02:55]} 10. Ne1 {[%clk 0:03:03]}  Bg7 {[%clk 0:02:53]} 11. Nd3 {[%clk 0:03:01]}  Nf5 {[%clk 0:02:35]} 12. f4 {[%clk 0:02:55]}  Qe7 {[%clk 0:02:34]} 13. a5 {[%clk 0:02:51]}  a6 {[%clk 0:02:33]} 14. Bd2 {[%clk 0:02:39]}  gxf4 {[%clk 0:02:27]} 15. Bxf4 {[%clk 0:02:33]}  O-O-O {[%clk 0:02:18]} 16. Qd2 {[%clk 0:02:31]}  f6 {[%clk 0:02:16]} 17. exf6 {[%clk 0:02:14]}  Bxf6 {[%clk 0:02:11]} 18. c3 {[%clk 0:02:04]}  e5 {[%clk 0:02:03]} 19. dxe5 {[%clk 0:02:03]}  Nxe5 {[%clk 0:02:04]} 20. Nxe5 {[%clk 0:02:03]}  Bxe5 {[%clk 0:02:04]} 21. Bg4 {[%clk 0:02:00]}  Rhf8 {[%clk 0:01:39]} 22. Rae1 {[%clk 0:01:51]}  Bxf4 {[%clk 0:01:38]} 23. Qxf4 {[%clk 0:01:43]}  Qg5 {[%clk 0:01:37]} 24. Qxg5 {[%clk 0:01:42]}  hxg5 {[%clk 0:01:38]} 25. Re5 {[%clk 0:01:42]}  Kc7 {[%clk 0:01:25]} 26. Bxf5 {[%clk 0:01:37]}  Kd6 {[%clk 0:01:19]} 27. Re6+ {[%clk 0:01:37]} 1-0


[Site "https://www.chess.com"]

[Event "Titled Tuesday Blitz December 06 Early 2022"]
[White "Meduri, Aakaash"]
[Black "Belozerov, Andrei"]
[WhiteFideId "2032252"]
[BlackFideId "4120213"]
[WhiteElo "2113"]
[BlackElo "2360"]
[Result "1-0"]
[Round "02"]
[TimeControl "180+1"]
[Date "2022.12.07"]
[WhiteClock "0:00:07"]
[BlackClock "0:00:08"]

1. d4 {[%clk 0:03:00]}  d5 {[%clk 0:02:59]} 2. Bf4 {[%clk 0:03:00]}  Nf6 {[%clk 0:02:59]} 3. Nc3 {[%clk 0:03:00]}  c5 {[%clk 0:02:57]} 4. e3 {[%clk 0:03:00]}  cxd4 {[%clk 0:02:57]} 5. exd4 {[%clk 0:02:58]}  Bg4 {[%clk 0:02:57]} 6. f3 {[%clk 0:02:56]}  Bd7 {[%clk 0:02:57]} 7. Bd3 {[%clk 0:02:55]}  Nc6 {[%clk 0:02:54]} 8. Nge2 {[%clk 0:02:55]}  Nb4 {[%clk 0:02:43]} 9. Bb5 {[%clk 0:02:49]}  e6 {[%clk 0:02:33]} 10. O-O {[%clk 0:02:49]}  a6 {[%clk 0:02:26]} 11. Bxd7+ {[%clk 0:02:42]}  Qxd7 {[%clk 0:02:26]} 12. a3 {[%clk 0:02:37]}  Nc6 {[%clk 0:02:25]} 13. Na4 {[%clk 0:02:38]}  Qd8 {[%clk 0:02:18]} 14. b4 {[%clk 0:02:36]}  Bd6 {[%clk 0:02:07]} 15. Bxd6 {[%clk 0:02:21]}  Qxd6 {[%clk 0:02:07]} 16. Qd3 {[%clk 0:02:20]}  O-O {[%clk 0:02:04]} 17. Rac1 {[%clk 0:02:13]}  b6 {[%clk 0:01:46]} 18. Rfd1 {[%clk 0:01:59]}  Ne7 {[%clk 0:01:41]} 19. c4 {[%clk 0:01:52]}  dxc4 {[%clk 0:01:41]} 20. Qxc4 {[%clk 0:01:52]}  Nfd5 {[%clk 0:01:34]} 21. Qd3 {[%clk 0:01:45]}  Rfc8 {[%clk 0:01:23]} 22. Ng3 {[%clk 0:01:45]}  a5 {[%clk 0:01:14]} 23. Ne4 {[%clk 0:01:36]}  Qf4 {[%clk 0:01:12]} 24. Rxc8+ {[%clk 0:01:35]}  Rxc8 {[%clk 0:01:12]} 25. bxa5 {[%clk 0:01:35]}  bxa5 {[%clk 0:01:09]} 26. Nac5 {[%clk 0:01:32]}  Rb8 {[%clk 0:01:05]} 27. g3 {[%clk 0:00:46]}  Qe3+ {[%clk 0:01:04]} 28. Qxe3 {[%clk 0:00:46]}  Nxe3 {[%clk 0:01:05]} 29. Rd2 {[%clk 0:00:47]}  N7d5 {[%clk 0:01:02]} 30. f4 {[%clk 0:00:34]}  h6 {[%clk 0:00:59]} 31. Kf2 {[%clk 0:00:23]}  Rb1 {[%clk 0:00:55]} 32. Ke2 {[%clk 0:00:20]}  Nc4 {[%clk 0:00:48]} 33. Ra2 {[%clk 0:00:20]}  f5 {[%clk 0:00:33]} 34. Nd2 {[%clk 0:00:13]}  Nxd2 {[%clk 0:00:28]} 35. Kxd2 {[%clk 0:00:13]}  Kf7 {[%clk 0:00:27]} 36. Kd3 {[%clk 0:00:11]}  g5 {[%clk 0:00:24]} 37. Re2 {[%clk 0:00:12]}  h5 {[%clk 0:00:24]} 38. Nxe6 {[%clk 0:00:11]}  a4 {[%clk 0:00:19]} 39. Nxg5+ {[%clk 0:00:11]}  Kf6 {[%clk 0:00:19]} 40. Re6+ {[%clk 0:00:11]}  Kg7 {[%clk 0:00:19]} 41. Kc4 {[%clk 0:00:12]}  Nf6 {[%clk 0:00:17]} 42. Re7+ {[%clk 0:00:12]}  Kg6 {[%clk 0:00:17]} 43. Ra7 {[%clk 0:00:07]}  Ne4 {[%clk 0:00:16]} 44. Ra6+ {[%clk 0:00:07]}  Kg7 {[%clk 0:00:16]} 45. Rxa4 {[%clk 0:00:08]}  Nd2+ {[%clk 0:00:16]} 46. Kd5 {[%clk 0:00:08]}  Rb5+ {[%clk 0:00:15]} 47. Kc6 {[%clk 0:00:08]}  Rb3 {[%clk 0:00:14]} 48. Ra7+ {[%clk 0:00:08]}  Kf6 {[%clk 0:00:14]} 49. d5 {[%clk 0:00:08]}  Rc3+ {[%clk 0:00:13]} 50. Kd7 {[%clk 0:00:08]}  Rd3 {[%clk 0:00:13]} 51. Ra6+ {[%clk 0:00:09]}  Kg7 {[%clk 0:00:13]} 52. d6 {[%clk 0:00:08]}  Nc4 {[%clk 0:00:13]} 53. Ke7 {[%clk 0:00:07]}  Re3+ {[%clk 0:00:12]} 54. Ne6+ {[%clk 0:00:07]}  Kg6 {[%clk 0:00:12]} 55. d7 {[%clk 0:00:07]}  Nxa3 {[%clk 0:00:10]} 56. Rxa3 {[%clk 0:00:07]}  Rxa3 {[%clk 0:00:10]} 57. d8=Q {[%clk 0:00:07]}  Ra7+ {[%clk 0:00:10]} 58. Nc7 {[%clk 0:00:07]}  Rxc7+ {[%clk 0:00:08]} 59. Qxc7 {[%clk 0:00:07]}  h4 {[%clk 0:00:09]} 60. Qd6+ {[%clk 0:00:07]}  Kh5 {[%clk 0:00:09]} 61. Qf6 {[%clk 0:00:07]}  h3 {[%clk 0:00:08]} 62. Qg5# {[%clk 0:00:07]} 1-0


[Site "https://www.chess.com"]

[Event "Titled Tuesday Blitz December 06 Early 2022"]
[White "Melaugh, Shane"]
[Black "Cramling Bellon, Anna"]
[WhiteFideId "2509580"]
[BlackFideId "32009232"]
[WhiteElo "2025"]
[BlackElo "1972"]
[Result "1-0"]
[Round "02"]
[TimeControl "180+1"]
[Date "2022.12.07"]
[WhiteClock "0:00:31"]
[BlackClock "0:00:01"]

1. c4 {[%clk 0:02:56]}  c5 {[%clk 0:02:59]} 2. Nc3 {[%clk 0:02:56]}  Nc6 {[%clk 0:02:59]} 3. g3 {[%clk 0:02:56]}  g6 {[%clk 0:02:59]} 4. Bg2 {[%clk 0:02:56]}  Bg7 {[%clk 0:02:59]} 5. e4 {[%clk 0:02:57]}  d6 {[%clk 0:02:58]} 6. Nge2 {[%clk 0:02:57]}  e5 {[%clk 0:02:57]} 7. d3 {[%clk 0:02:55]}  Nge7 {[%clk 0:02:52]} 8. h4 {[%clk 0:02:55]}  h5 {[%clk 0:02:50]} 9. a3 {[%clk 0:02:55]}  O-O {[%clk 0:02:50]} 10. Rb1 {[%clk 0:02:54]}  Nd4 {[%clk 0:02:50]} 11. O-O {[%clk 0:02:51]}  Bg4 {[%clk 0:02:50]} 12. f3 {[%clk 0:02:52]}  Be6 {[%clk 0:02:47]} 13. b4 {[%clk 0:02:51]}  b6 {[%clk 0:02:34]} 14. Kh2 {[%clk 0:02:42]}  f5 {[%clk 0:02:32]} 15. Bg5 {[%clk 0:02:40]}  Qe8 {[%clk 0:02:32]} 16. Nxd4 {[%clk 0:02:31]}  cxd4 {[%clk 0:02:31]} 17. Nd5 {[%clk 0:02:16]}  Nxd5 {[%clk 0:02:28]} 18. exd5 {[%clk 0:02:10]}  Bd7 {[%clk 0:02:25]} 19. f4 {[%clk 0:02:10]}  e4 {[%clk 0:02:23]} 20. Re1 {[%clk 0:02:00]}  e3 {[%clk 0:02:21]} 21. Rc1 {[%clk 0:01:47]}  Rc8 {[%clk 0:02:14]} 22. b5 {[%clk 0:01:25]}  Rc7 {[%clk 0:01:42]} 23. Qb3 {[%clk 0:01:23]}  Qc8 {[%clk 0:01:34]} 24. Qb4 {[%clk 0:01:23]}  Rc5 {[%clk 0:01:34]} 25. Be7 {[%clk 0:01:22]}  a5 {[%clk 0:00:53]} 26. Qb2 {[%clk 0:01:12]}  Qb8 {[%clk 0:00:47]} 27. Bxf8 {[%clk 0:01:10]}  Qxf8 {[%clk 0:00:47]} 28. Bf3 {[%clk 0:00:59]}  Bf6 {[%clk 0:00:42]} 29. Qe2 {[%clk 0:00:58]}  Qe7 {[%clk 0:00:35]} 30. Bxh5 {[%clk 0:00:56]}  gxh5 {[%clk 0:00:26]} 31. Qxh5 {[%clk 0:00:57]}  Qg7 {[%clk 0:00:17]} 32. Rg1 {[%clk 0:00:55]}  Rc8 {[%clk 0:00:16]} 33. a4 {[%clk 0:00:52]}  Qh7 {[%clk 0:00:09]} 34. Qf3 {[%clk 0:00:50]}  Re8 {[%clk 0:00:03]} 35. Rc2 {[%clk 0:00:49]}  Re7 {[%clk 0:00:03]} 36. Rcg2 {[%clk 0:00:50]}  Kh8 {[%clk 0:00:02]} 37. c5 {[%clk 0:00:46]}  bxc5 {[%clk 0:00:01]} 38. b6 {[%clk 0:00:46]}  Bc8 {[%clk 0:00:02]} 39. Rb1 {[%clk 0:00:46]}  Ba6 {[%clk 0:00:02]} 40. Qe2 {[%clk 0:00:40]}  Qg7 {[%clk 0:00:01]} 41. Rb3 {[%clk 0:00:39]}  Qg4 {[%clk 0:00:01]} 42. Kg1 {[%clk 0:00:31]} 1-0


[Site "https://www.chess.com"]